Cogmind - Beta 13 @@@ ROGUE MODE // 2024.04.12 @ 04:03:13 Player: Exceptionally Mediocre Result: Destroyed by D-53 Grenadier with Mini Grenade Launcher Performance ------------- Evolutions (0) 0 Regions Visited (2) 400 Robots Destroyed (31) 155 Value Destroyed (683) 683 Prototype IDs (0) 0 Alien Tech Used (0) 0 Bonus (0) 0 TOTAL SCORE: 1238 Bonus ------- None Cogmind --------- Core Integrity 0/250 Matter 236/300 Energy 248/250 System Corruption 1% Temperature Cool (0) Movement Rolling (120) Ox2 Location -10/Mines Parts ------- > --- POWER (1) -------- Ion Engine > --- PROPULSION (2) --- Armored Wheel Armored Wheel > --- UTILITY (2) ------ High-capacity Storage Unit Signal Interpreter > --- WEAPON (2) ------- Assault Rifle Assault Rifle > --- INVENTORY (20) --- Light Ion Engine Light Ion Engine Light Nuclear Core Wheel Wheel Armored Wheel Armored Wheel Heat Sink Large Battery (200) Medium Matter Pod (19) Improved Targeting Computer Improved Targeting Computer Weapon Shielding Beam Rifle Assault Rifle Grenade Launcher Grenade Launcher Mining Laser Peak State ------------ > --- POWER ------------ Ion Engine > --- PROPULSION ------- Armored Wheel Armored Wheel > --- UTILITY ---------- High-capacity Storage Unit Signal Interpreter > --- WEAPON ----------- Beam Rifle Grenade Launcher > --- INVENTORY -------- Light Ion Engine Light Nuclear Core Wheel Compact Wheel Armored Wheel Armored Wheel Heat Sink Large Battery Improved Targeting Computer Improved Targeting Computer Assault Rifle Assault Rifle Grenade Launcher Mining Laser [Rating: 12] Favorites ----------- Power Ion Engine Engine Ion Engine Propulsion Wheel Wheel Wheel Utility Signal Interpreter Device Improved Terrain Scanner Storage High-capacity Storage Unit Processor Signal Interpreter Weapon Beam Rifle Energy Gun Beam Rifle Ballistic Gun Autogun Launcher Grenade Launcher Build | -11 -10 -10 ------- Run | Yrd Mat Min Slots Evolved . | . . . Power . | . . . Propulsion . | . . . Utility . | . . . Weapon . | . . . Parts Attached 34 | 10 21 3 Power 7 | 3 4 . Engine 7 | 3 4 . Core . | . . . Reactor . | . . . Propulsion 11 | 3 8 . Treads . | . . . Leg . | . . . Wheel 11 | 3 8 . Hover . | . . . Flight . | . . . Utility 6 | 2 4 . Device 1 | 1 . . Storage 4 | 1 3 . Processor 1 | . 1 . Hackware . | . . . Protection . | . . . Artifact . | . . . Weapon 10 | 2 5 3 Energy Gun 2 | 1 1 . Energy Cannon . | . . . Ballistic Gun 7 | 1 3 3 Ballistic Cannon . | . . . Launcher 1 | . 1 . Special Weapon . | . . . Impact Weapon . | . . . Slashing Weapon . | . . . Piercing Weapon . | . . . Special Melee Weapon . | . . . Unidentified Prototypes . | . . . Parts Lost 10 | . 8 2 Power 2 | . 2 . Propulsion 4 | . 4 . Utility . | . . . Weapon 4 | . 2 2 Highest Loss Streak 2 | . 2 2 To Critical Strikes . | . . . Average Slot Usage (%) 98 | . 98 100 Engine 14 | . 14 14 Wheel 26 | . 26 28 Device 1 | . 1 . Storage 14 | . 14 14 Processor 12 | . 12 14 Energy Gun 10 | . 10 7 Ballistic Gun 10 | . 10 14 Launcher 6 | . 6 7 Naked Turns . | . . . Heaviest Build 51 | 14 51 51 Greatest Support 28 | 26 28 24 Greatest Overweight (x) 2 | . 2 2 Average Overweight (x) . | . . 2 Largest Inventory Capacity 20 | 8 20 20 Average Capacity 13 | 7 14 20 Most Carried 20 | 8 20 20 Average Carried 12 | 4 12 19 Final Capacity 20 | 8 20 20 Final Carried 20 | 8 20 18 Class Distribution -------------------- 76% | Mutant 23% | Scavenger-Mutant Dominant Class ---------------- Mutant | -10/Materials Mutant | -10/Mines Resources | -11 -10 -10 ----------- Run | Yrd Mat Min Matter Collected 951 | 311 640 . Remotely . | . . . Salvage Created 1158 | 212 946 . Parts 67 | 15 52 . Haulers Intercepted 2 | . 2 . Recyclers Shooed 3 | . 3 . Parts Field Recycled . | . . . Retrieved Matter . | . . . Parts Self-Destructed . | . . . Prevented . | . . . Kills | -11 -10 -10 ------- Run | Yrd Mat Min Combat Hostiles Destroyed 15 | . 15 . Guns 13 | . 13 . AOE 2 | . 2 . Classes Destroyed 6 | 3 3 . Worker 3 | 1 2 . Tunneler 5 | 5 . . Hauler 2 | . 2 . Recycler 3 | 1 2 . Watcher 3 | . 3 . Grunt 15 | . 15 . Best Kill Streak 6 | 5 6 . Combat Bots Only 3 | . 3 . Max Kills in Single Turn 1 | 1 1 . Gunslinging . | . . . Exploded 1 | . 1 . Melee . | . . . Uniques/NPCs Destroyed . | . . . Combat | -11 -10 -10 -------- Run | Yrd Mat Min Hostile Shots Fired 81 | . 75 6 Missed 16 | . 16 . Damage Taken 1277 | . 845 432 Core 253 | . 194 59 Absorbed by Shields . | . . . Core Remaining (%) 100 | 100 . . Volleys Fired 88 | 11 71 6 Largest 2 | 2 2 2 Hottest 79 | 70 79 40 Shots Fired 168 | 22 136 10 Gun 161 | 22 131 8 Cannon . | . . . Launcher 7 | . 5 2 Special . | . . . Kinetic 123 | 11 104 8 Thermal 38 | 11 27 . Explosive 7 | . 5 2 Electromagnetic . | . . . Robot Hit Streak 12 | 4 12 5 Robot Miss Streak 4 | 4 3 3 Penetration Max . | . . . Secondary Targets 3 | . 3 . Max Gunslinging Chain 1 | . 1 . Shots Hit Robots 102 | 11 86 5 Core Hits 55 | 9 40 6 Critical Kills . | . . . Critical Parts Destroyed . | . . . Critical Strikes 5 | 1 4 . Burn 5 | 1 4 . Melee Attacks . | . . . Impact . | . . . Slashing . | . . . Piercing . | . . . Sneak Attacks . | . . . Combat Hostiles . | . . . Follow-up Attacks . | . . . Damage Inflicted 1754 | 134 1495 125 Guns 1509 | 134 1306 69 Cannons . | . . . Explosions 245 | . 189 56 Melee . | . . . Ramming . | . . . Kinetic 1110 | 37 1004 69 Thermal 399 | 97 302 . Explosive 245 | . 189 56 Electromagnetic . | . . . Impact . | . . . Slashing . | . . . Piercing . | . . . Highest Corruption 1 | . 1 1 Average Corruption 1 | . 1 1 Corruption Purged . | . . . Corruption Blocked . | . . . Effects 1 | . 1 . Matter Fused 1 | . 1 . Overload Shots . | . . . Overflow Damage . | . . . Projectiles . | . . . Explosions . | . . . Melee . | . . . Knockbacks . | . . . Impact . | . . . Kinetic . | . . . Secondary . | . . . Self-Inflicted Damage 40 | . 40 . Shots 1 | . 1 . Rammed . | . . . Targets Rammed . | . . . Kicked . | . . . Crushed . | . . . Highest Temperature 349 | 60 349 . Average Temperature 62 | 26 68 . Received Heat Transfer 480 | . 480 . Siege Activations . | . . . Robots Corrupted . | . . . Combat Hostiles . | . . . Parts Fried . | . . . Impact Corruptions . | . . . Robots Melted . | . . . Combat Hostiles . | . . . Parts Melted 5 | 2 3 . Heat Transferred 1443 | 370 1073 . Parts Sabotaged . | . . . Parts Stolen . | . . . Parts Stripped . | . . . Power Chain Reactions . | . . . Alert | -11 -10 -10 ------- Run | Yrd Mat Min Peak Influence 277 | 35 277 9 Initial 22 | . 22 . Average 124 | 15 142 . Maximum Alert Level 1 | . 1 . Low Security (%) 71 | 100 67 100 Level 1 28 | . 32 . Level 2 . | . . . Level 3 . | . . . Level 4 . | . . . Level 5 . | . . . High Security . | . . . Max Security . | . . . Squads Dispatched 2 | . 2 . Investigation 1 | . 1 . Extermination . | . . . Reinforcement 1 | . 1 . Assault . | . . . Garrison . | . . . Intercept . | . . . Searches Triggered . | . . . Construction Impeded . | . . . Haulers Reinforced . | . . . Active Scanning Responses . | . . . Cargo Convoy Interrupts . | . . . Stealth | -11 -10 -10 --------- Run | Yrd Mat Min Distress Signals 2 | . 2 . Communications Jammed . | . . . Distress Signals . | . . . Times Spotted 21 | . 19 2 Peak Tracking Total 4 | . 4 2 Tactical Retreats . | . . . Traps | -11 -10 -10 ------- Run | Yrd Mat Min Traps Triggered 1 | . 1 . Indirectly . | . . . Trap Hack Attempts . | . . . Triggered . | . . . Disarmed . | . . . Reprogrammed . | . . . Reused . | . . . Traps Extracted . | . . . Installed . | . . . Triggered . | . . . Machines | -11 -10 -10 ---------- Run | Yrd Mat Min Machines Disabled . | . . . Max in Single Turn . | . . . Machines Repaired . | . . . Machines Dismantled . | . . . Machines Sabotaged . | . . . Overloaded Fab Kills . | . . . Hacking | -11 -10 -10 --------- Run | Yrd Mat Min Machines Accessed 9 | . 9 . Terminals 7 | . 7 . Fabricators . | . . . Repair Stations . | . . . Recycling Units 2 | . 2 . Scanalyzers . | . . . Garrison Access . | . . . Total Hacks 24 | . 24 . Successful 15 | . 15 . Failed 9 | . 9 . Catastrophic . | . . . Database Lockouts . | . . . Manual 19 | . 19 . Terminals 21 | . 21 . Fabricators . | . . . Repair Stations . | . . . Recycling Units 3 | . 3 . Scanalyzers . | . . . Garrison Access . | . . . Terminal Hacks 2 | . 2 . Robot Analysis 1 | . 1 . Alert Level 1 | . 1 . Fabricator Hacks . | . . . Repair Station Hacks . | . . . Recycling Unit Hacks 3 | . 3 . Report Inventory 1 | . 1 . Retrieve Components 2 | . 2 . Scanalyzer . | . . . Garrison Access Hacks . | . . . Unauthorized Hacks 10 | . 10 . Terminals 10 | . 10 . Assimilate 4 | . 4 . Botnet 6 | . 6 . Fabricators . | . . . Repair Stations . | . . . Recycling Units . | . . . Scanalyzers . | . . . Garrison Access . | . . . Data Cores Recovered . | . . . Used . | . . . Hacking Detections 7 | . 7 . Full Trace Events 5 | . 5 . Feedback Events 1 | . 1 . Corruption 1 | . 1 . Feedback Blocked . | . . . Robot Schematics Acquired . | . . . Robots Built . | . . . Authchips . | . . . Time . | . . . Total Robot Build Rating . | . . . Part Schematics Acquired . | . . . Parts Built . | . . . Authchips . | . . . Time . | . . . Total Part Build Rating . | . . . Parts Repaired . | . . . Time . | . . . Parts Recycled . | . . . Recycled Matter . | . . . Retrieved Matter . | . . . Retrieved Components 10 | . 10 . Parts Scanalyzed . | . . . Part Schematics Acquired . | . . . Parts Damaged . | . . . Bothacking | -11 -10 -10 ------------ Run | Yrd Mat Min Used RIF Installer . | . . . Robots Hacked . | . . . Non-combat . | . . . Combat . | . . . Robot Hacks Applied . | . . . Relay Couplers Released . | . . . Fabnet Peak Effective % . | . . . Robots Rewired . | . . . Allies Hacked . | . . . Hacks Repelled . | . . . Allies | -11 -10 -10 -------- Run | Yrd Mat Min Total Allies 1 | . 1 . Largest Group 1 | . 1 . Highest-Rated Group 10 | . 10 . Highest-Rated Ally 10 | . 10 . Total Orders . | . . . Ally Attacks . | . . . Total Damage . | . . . Kills . | . . . Allies Corrupted . | . . . Allies Melted . | . . . Intel | -11 -10 -10 ------- Run | Yrd Mat Min Robot Analysis Total 1 | . 1 . Derelict Logs Recovered . | . . . Drone Launches . | . . . Drone Recoveries . | . . . Exploration | -11 -10 -10 ------------- Run | Yrd Mat Min Turns Passed 1399 | 151 1208 40 Spaces Moved 1075 | 115 941 19 Core 1 | 1 . . Treads . | . . . Legs . | . . . Wheels 1074 | 114 941 19 Hover . | . . . Flight . | . . . Fastest Speed 50 | 50 80 120 Average Speed 99 | 83 101 120 Slowest Speed 120 | 90 120 120 Overloaded Moves . | . . . Propulsion Burnouts . | . . . Robots Hopped . | . . . Cave-ins Triggered . | . . . Exploration Rate (%) 37 | 4 99 10 Regions Visited 2 Branch Regions 1 Pre-discovered Areas . | . . . Known Exits Taken 1 | . 1 . Unknown Exits Taken 1 | 1 . . Scrap Searched . | . . . Spaces Dug . | . . . Terrain Destroyed 41 | . 32 9 Melee . | . . . Projectile . | . . . AOE 41 | . 32 9 Terrain Rammed . | . . . Walls Destroyed . | . . . Machines Disabled . | . . . Actions | -11 -10 -10 --------- Run | Yrd Mat Min Total 1266 | 146 1092 28 Wait 8 | . 8 . Move 1073 | 114 940 19 Hop . | . . . Pick Up 40 | 9 31 . Fast Attach 8 | 6 2 . Attach 12 | 2 8 2 Detach . | . . . Swap 14 | 2 11 1 Drop 23 | 2 21 . Fire 88 | 11 71 6 Melee . | . . . Ram . | . . . Kick . | . . . Crush . | . . . Escape Stasis . | . . . Rewire . | . . . Trap . | . . . Miscellaneous . | . . . Route ------- -11/Scrapyard -10/Materials (discovered 5 exits: [*Mat x3] / *Min x2) -10/Mines (discovered 1 exit: [*Mat]) History --------- Turn | Location | Event 14 | -11/Scrapyard | Discovered new exit (range 16) 152 | -11/Scrapyard | Entered Materials 301 | -10/Materials | Discovered new exit (range 15) 306 | -10/Materials | Discovered new exit (range 11) 309 | -10/Materials | Build established: Mutant 359 | -10/Materials | Identified exit to Mines 437 | -10/Materials | Discovered new exit (range 5) 600 | -10/Materials | Derelicts attacked the area 643 | -10/Materials | Core integrity fell below 50% 745 | -10/Materials | Discovered new exit (range 8) 1270 | -10/Materials | Discovered new exit (range 14) 1360 | -10/Materials | Entered Mines 1361 | -10/Mines | Assembled infested the area 1366 | -10/Mines | Assisted by a Guerilla fighting off Assembled 1385 | -10/Mines | Core integrity fell below 20% 1394 | -10/Mines | Discovered new exit (range 9) 1400 | -10/Mines | Destroyed by D-53 Grenadier with Mini Grenade Launcher Last Messages --------------- 01383_ U-05 Engineer destroyed. 01385_ Grenade Launcher destroyed. 01385_ HV Slug penetrates D-53 Grenadier. 01385_ D-53 Grenadier suffers critical hit (Destroy). 01387_ HV Slug penetrates D-53 Grenadier. 01387_ D-53 Grenadier suffers critical hit (Destroy). 01387_ D-53 Grenadier destroyed. 01388_ IY-I3F(h) destroyed. 01389_ The unstable cave ceiling collapses. 01390_ T-07 Excavator is excavating. 01392_ Assault Rifle destroyed. 01394_ EXIT=FOUND 01395_ U-05 Engineer lays Concrete. 01395_ U-05 Engineer builds a Wall. 01396_ U-05 Engineer lays Concrete. 01399_ U-05 Engineer builds a Wall. 01400_ The unstable cave ceiling collapses. 01400_ U-05 Engineer lays Concrete. Map ----- +----------------------------------------------------+ | | | | | | | | | ?????????????????????????????????????????????????? | | ?????????????????????????????????????????????????? | | ?????????????????????????????????????????????????? | | ?????????????????????????????????????????????????? | | ?????????????????????????????????????????????????? | | ?????????????????????????????????????????????????? | | ?????????????????????????????????????????????????? | | ?????????????????????????????????????????????????? | | ?????????????????????????????????????????????????? | | ???????????????????#?????????????????????????????? | | ??????????????????? ##???????????????????????????? | | ???????????????????#t ###????????????????????????? | | ???????????????????# ????????????????????????? | | ???????????????????#